bitfinex-derivatives/quotes_ETHF0:USTF0_20251009
["timestamp","ask_amount","ask_price","bid_price","bid_amount"]
[1760025502278,1.21397,4321.3,4321.2,2.2775]
[1760025502670,1.21620582,4321.3,4321.2,2.2775]
[1760025502871,1.21620582,4321.3,4321.2,3.1332]
[1760025506671,1.21620582,4321.3,4321.0,1.7011]
[1760025506672,1.21399,4321.1,4321.0,1.7011]
[1760025508374,1.21399,4321.1,4321.0,2.545]
[1760025510879,0.41641,4320.9,4320.8,3.2078]
[1760025511075,0.66574,4320.6,4320.5,41.3015]
[1760025511374,1.21407,4320.3,4320.2,4.4074]
[1760025511779,1.21407,4320.3,4320.2,45.2074]
[1760025512186,1.21407,4320.3,4320.2,4.4074]
[1760025512681,1.46337,4320.3,4320.2,4.4074]
[1760025513080,0.2493,4319.7,4319.6,3.21006185]
[1760025513380,5.14557181,4319.7,4319.6,0.00226185]
[1760025513687,0.41668,4318.1,4318.0,0.5015]
[1760025513883,0.41668,4318.1,4318.0,2.2011]
[1760025514078,0.81188,4318.1,4318.0,43.0011]
[1760025514378,0.81188,4318.1,4318.0,44.4347]
[1760025514578,0.81411892,4318.1,4318.0,44.4372863]
[1760025515578,0.41891892,4318.1,4318.0,44.4372863]
[1760025515879,0.41891892,4318.1,4318.0,42.5036863]
[1760025517378,0.41891892,4318.1,4318.0,42.7376863]
[1760025517580,0.00223892,4318.1,4318.0,42.7376863]
[1760025519586,0.00223892,4318.1,4318.0,42.5036863]
[1760025519981,0.00223892,4318.1,4318.0,42.7376863]
[1760025521687,0.00223892,4318.1,4318.0,42.5036863]
[1760025521888,0.00223892,4318.1,4318.0,42.7376863]
[1760025523988,0.00223892,4318.1,4318.0,42.5036863]
[1760025524186,0.00223892,4318.1,4318.0,42.7376863]
[1760025524788,0.00223892,4318.1,4318.0,42.5036863]
[1760025524993,0.00223892,4318.1,4318.0,0.0025863]
[1760025524994,0.87163892,4318.1,4318.0,0.0025863]
[1760025526087,0.66463892,4318.1,4318.0,1.7357863]
[1760025526889,1.08131892,4318.1,4318.0,1.7357863]
[1760025527491,1.08131892,4318.1,4318.0,3.3013863]
[1760025531896,0.75011892,4318.1,4318.0,3.3013863]
[1760025532990,1.08131892,4318.1,4318.0,3.3013863]
[1760025534500,9.28662435,4318.1,4318.0,6.3e-06]
[1760025537295,4.28662435,4318.1,4318.0,6.3e-06]
[1760025537502,1.31531892,4318.1,4318.0,2.5281063]
[1760025537699,1.31531892,4318.1,4318.0,1.7332063]
[1760025537996,1.52231892,4318.1,4318.0,1.7332063]
[1760025540201,1.31531892,4318.1,4318.0,2.5281063]
[1760025540500,1.85842783,4318.1,4318.0,2.5281063]
[1760025540998,1.85842783,4318.1,4318.0,1.7332063]
[1760025541904,2.06542783,4318.1,4318.0,1.7332063]
[1760025542304,6.85842783,4318.1,4318.0,6.3e-06]
[1760025542512,9.91835507,4318.1,4318.0,6.3e-06]
[1760025542705,4.91835507,4318.1,4318.0,6.3e-06]
[1760025542902,4.91835507,4318.1,4318.0,0.5001063]
[1760025543112,4.91835507,4318.1,4318.0,1.7332063]
[1760025543413,4.91835507,4318.1,4318.0,6.3e-06]
[1760025543607,9.91835507,4318.1,4318.0,6.3e-06]
[1760025545109,4.91835507,4318.1,4318.0,6.3e-06]
[1760025545309,1.85842783,4318.1,4318.0,2.5281063]
[1760025545811,1.85842783,4318.1,4318.0,1.7332063]
[1760025546210,2.06542783,4318.1,4318.0,1.7332063]
[1760025547607,4.86671167,4318.1,4318.0,6.3e-06]
[1760025549108,9.86671167,4318.1,4318.0,6.3e-06]
[1760025551518,4.86671167,4318.1,4318.0,6.3e-06]
[1760025551810,5.07371167,4318.1,4318.0,6.3e-06]
[1760025552208,4.86671167,4318.1,4318.0,6.3e-06]
[1760025552909,5.03421167,4318.1,4318.0,6.3e-06]
[1760025553109,4.86671167,4318.1,4318.0,6.3e-06]
[1760025553509,1.85842783,4318.1,4318.0,3.3300063]
[1760025553716,0.96202783,4318.1,4318.0,8.3300063]
[1760025554014,0.95511892,4318.1,4318.0,3.3300063]
[1760025554216,1.50007291,4318.1,4318.0,3.3300063]
[1760025558010,0.00223892,4318.1,4318.0,3.3300063]
[1760025558209,0.1852,4318.5,4318.4,2.8615]
[1760025558509,0.68464,4319.5,4319.4,2.8615]
[1760025558713,1.73191524,4319.5,4319.4,2.8615]
[1760025558915,1.73191524,4319.5,4319.4,2.0554]
[1760025559215,1.73394411,4319.5,4319.4,1.2627]
[1760025559413,3.04333085,4319.5,4319.4,2.8615]
[1760025559715,3.31143085,4319.5,4319.4,2.8615]
[1760025560113,3.57953085,4319.5,4319.4,2.8615]
[1760025560316,0.95278,4319.1,4319.0,2.5239]
[1760025560615,1.12028,4319.1,4319.0,1.2627]
[1760025560820,0.41662,4318.7,4318.6,42.0627]
[1760025561518,0.96115773,4318.7,4318.6,42.0627]
[1760025563219,1.49735773,4318.7,4318.6,1.2627]
[1760025563521,0.95282,4318.7,4318.6,1.2627]
[1760025563717,1.49734598,4318.7,4318.6,1.2627]
[1760025564022,0.95282,4318.7,4318.6,1.2627]
[1760025564221,1.49734946,4318.7,4318.6,1.2627]
[1760025564425,0.1675,4318.1,4318.0,0.4685063]
[1760025564621,0.95288,4318.1,4318.0,6.3e-06]
[1760025565317,0.68478,4318.1,4318.0,3.3300063]
[1760025566422,0.95288,4318.1,4318.0,3.3300063]
[1760025567123,0.68478,4318.1,4318.0,3.3300063]
[1760025567320,0.41668,4318.1,4318.0,3.3300063]
[1760025567520,0.68478,4318.1,4318.0,3.3300063]
[1760025567719,0.95288,4318.1,4318.0,0.4685063]
[1760025568019,0.95288,4318.1,4318.0,3.3300063]
[1760025568424,0.41668,4318.1,4318.0,3.3300063]
[1760025568814,0.95288,4318.1,4318.0,2.5239063]
[1760025569014,0.95288,4318.1,4318.0,1.7312063]
[1760025569417,0.95288,4318.1,4318.0,2.5239063]
[1760025571327,0.95288,4318.1,4318.0,3.3300063]
[1760025571631,0.41668,4318.1,4318.0,3.3300063]
[1760025571928,0.41668,4318.1,4318.0,3.5640063]
[1760025572126,0.95288,4318.1,4318.0,3.3300063]
[1760025572426,0.68478,4318.1,4318.0,3.3300063]
[1760025574724,0.95288,4318.1,4318.0,2.5239063]
[1760025575327,0.95288,4318.1,4318.0,3.3300063]
[1760025575929,0.95288,4318.1,4318.0,3.5640063]
[1760025578031,0.95288,4318.1,4318.0,3.3300063]
[1760025578533,0.95288,4318.1,4318.0,2.5239063]
[1760025579830,0.95288,4318.1,4318.0,3.3300063]
[1760025581835,0.68478,4318.1,4318.0,3.3300063]
[1760025582432,0.95288,4318.1,4318.0,2.5239063]
[1760025582628,0.95288,4318.1,4318.0,3.3300063]
[1760025583324,0.41668,4318.1,4318.0,3.3300063]
[1760025583831,0.62058,4318.1,4318.0,3.3300063]
[1760025585435,0.82448,4318.1,4318.0,1.7312063]
[1760025585631,0.82448,4318.1,4318.0,6.3e-06]
[1760025585632,0.95188,4318.1,4318.0,6.3e-06]
[1760025585835,0.82448,4318.1,4318.0,6.3e-06]
[1760025586135,0.82448,4318.1,4318.0,1.6301063]
[1760025587333,0.95188,4318.1,4318.0,1.6301063]
[1760025587535,0.82448,4318.1,4318.0,6.3e-06]
[1760025588636,1.3697543,4318.1,4318.0,6.3e-06]
[1760025590142,7.59379616,4318.1,4318.0,6.3e-06]
[1760025590840,7.71299616,4318.1,4318.0,6.3e-06]
[1760025591035,7.71299616,4318.1,4318.0,0.4792063]
[1760025591232,7.59379616,4318.1,4318.0,6.3e-06]
[1760025594339,12.59379616,4318.1,4318.0,6.3e-06]
[1760025594539,7.59379616,4318.1,4318.0,6.3e-06]
[1760025596341,12.59379616,4318.1,4318.0,6.3e-06]
[1760025598242,12.82779616,4318.1,4318.0,6.3e-06]
[1760025600340,7.04852186,4318.1,4318.0,6.3e-06]
[1760025601044,7.59337569,4318.1,4318.0,6.3e-06]
[1760025601745,7.71257569,4318.1,4318.0,6.3e-06]
[1760025602544,4.57713383,4318.1,4318.0,6.3e-06]
[1760025603050,4.81113383,4318.1,4318.0,1.6370063]
[1760025603346,4.93033383,4318.1,4318.0,1.6370063]
[1760025603546,1.72253383,4318.1,4318.0,1.6370063]
[1760025603847,1.72253383,4318.1,4318.0,6.3e-06]
[1760025604344,12.76475891,4318.1,4318.0,6.3e-06]
[1760025604742,7.76475891,4318.1,4318.0,6.3e-06]
[1760025604940,7.53075891,4318.1,4318.0,6.3e-06]
[1760025605243,0.74875383,4318.1,4318.0,8.1840063]
[1760025605447,1.87938368,4318.4,4318.3,1.547]
[1760025605645,2.07008368,4318.4,4318.3,2.7048]
[1760025606047,1.84413368,4318.4,4318.3,2.7048]
[1760025606351,1.84413368,4318.4,4318.3,1.9059]
[1760025606352,0.6154,4318.4,4318.3,1.9059]
[1760025606550,0.6154,4318.4,4318.3,2.7048]
[1760025607042,0.6154,4318.4,4318.3,1.1578]
[1760025607242,0.79808,4318.1,4318.0,0.4792063]
[1760025607446,1.57703959,4318.1,4318.0,6.3e-06]
[1760025607645,4.54187831,4318.1,4318.0,6.3e-06]
[1760025608640,9.54187831,4318.1,4318.0,6.3e-06]
[1760025610048,6.57703959,4318.1,4318.0,6.3e-06]
[1760025610252,9.57080337,4318.1,4318.0,6.3e-06]
[1760025611051,4.33680337,4318.1,4318.0,6.3e-06]
[1760025611254,1.04192,4317.3,4316.1,1.1578]
[1760025611551,2.0836,4317.7,4316.2,1.9059]
[1760025611552,0.79826,4316.3,4316.2,1.9059]
[1760025611851,1.5780847,4316.3,4316.2,1.1578]
[1760025612057,1.5780747,4316.3,4316.2,1.1578]
[1760025612245,1.69965579,4316.3,4316.2,1.16057167]
[1760025613755,1.69965579,4316.3,4316.2,0.00277167]
[1760025614156,1.69965579,4316.3,4316.2,1.21837167]
[1760025614452,1.03463109,4316.3,4316.2,1.21837167]
[1760025614752,1.03463109,4316.3,4316.2,2.01457167]
[1760025614952,1.12113109,4316.3,4316.2,1.21837167]
[1760025615254,1.66633719,4316.3,4316.2,0.00277167]
[1760025615750,1.66633719,4316.3,4316.2,1.21837167]
[1760025615958,1.66633719,4316.3,4316.2,0.00277167]
[1760025616650,4.66561078,4316.3,4316.2,0.00277167]
[1760025616854,0.69353,4315.5,4315.3,3.2078]
[1760025617052,0.5971,4315.4,4315.3,3.2078]
[1760025617250,0.5971,4315.4,4315.3,4.4234]
[1760025617251,0.5106,4315.4,4315.3,4.4234]
[1760025617451,0.5106,4315.4,4315.3,5.9539]
[1760025617654,0.3723,4315.4,4315.3,5.9539]
[1760025617851,0.3723,4315.4,4315.3,5.95656926]
[1760025618052,0.5106,4315.4,4315.3,4.42606926]
[1760025618253,0.5106,4315.4,4315.3,5.95656926]
[1760025618456,0.234,4315.4,4315.3,5.95656926]
[1760025618752,0.4169,4315.8,4315.3,10.95656926]
[1760025618961,0.55517,4316.1,4316.0,3.2146]
[1760025619164,0.78917,4316.1,4316.0,3.2146]
[1760025619455,0.92747,4316.1,4316.0,3.2146]
[1760025619653,0.92747,4316.1,4316.0,2.4803]
[1760025619853,0.92747,4316.1,4316.0,1.6841]
[1760025621046,0.92747,4316.1,4316.0,2.4803]
[1760025621654,0.00238109,4316.3,4316.0,6.999]
[1760025621862,0.55753109,4316.3,4316.2,2.7461]
[1760025622356,0.69583109,4316.3,4316.2,2.7461]
[1760025623055,0.69583109,4316.3,4316.2,7.7461]
[1760025623056,0.00238109,4316.3,4316.2,7.7461]
[1760025623954,0.14068109,4316.3,4316.2,7.7461]
[1760025625058,0.27898109,4316.3,4316.2,1.2156]
[1760025625256,0.27898109,4316.3,4316.2,2.0118]
[1760025625748,0.14068109,4316.3,4316.2,2.7461]
[1760025626064,0.55753109,4316.3,4316.2,2.7461]
[1760025626560,0.1853,4317.2,4317.1,1.94727]
[1760025626859,0.55498,4318.1,4318.0,1.999]
[1760025627051,0.55498,4318.1,4318.0,3.2146]
[1760025627253,0.1383,4318.1,4318.0,3.2146]
[1760025627454,0.099,4318.5,4318.0,3.2146]
[1760025627455,0.099,4318.5,4318.4,0.7343]
[1760025627757,0.79446759,4318.5,4318.4,1.21763844]
[1760025629153,0.79446759,4318.5,4318.4,2.01383844]
[1760025629955,0.37782759,4318.5,4318.4,2.01383844]
[1760025630154,0.37782759,4318.5,4318.4,2.74813844]
[1760025630657,0.00222759,4318.5,4318.4,2.74813844]
[1760025631054,0.36532759,4318.5,4318.4,0.00203844]
[1760025631254,0.27882759,4318.5,4318.4,2.01383844]
[1760025631450,0.14052759,4318.5,4318.4,2.74813844]
[1760025631653,0.00222759,4318.5,4318.4,2.74813844]
[1760025631849,0.14052759,4318.5,4318.4,2.74813844]
[1760025632055,0.27882759,4318.5,4318.4,2.74813844]
[1760025632661,0.00222759,4318.5,4318.4,2.74813844]
[1760025633655,0.14052759,4318.5,4318.4,2.74813844]
[1760025633953,0.00222759,4318.5,4318.4,7.74813844]
[1760025634153,0.4618,4319.3,4319.2,2.7461]
[1760025634356,0.4618,4319.3,4319.2,1.2156]
[1760025634553,0.4618,4319.3,4319.0,0.4685]
[1760025634554,0.2766,4319.1,4319.0,42.4841]
[1760025635163,0.27882708,4319.1,4319.0,2.4803]
[1760025635355,0.00222708,4319.1,4319.0,3.2146]
[1760025635663,0.14052708,4319.1,4319.0,3.2146]
[1760025635856,0.27882708,4319.1,4319.0,3.2146]
[1760025636054,0.77969,4319.0,4318.9,3.2078]
[1760025636661,0.69319,4319.0,4318.9,3.2078]
[1760025636865,0.3631,4319.0,4318.9,3.2078]
[1760025637058,0.3631,4319.0,4318.7,40.8]
[1760025637059,0.2248,4318.8,4318.7,40.8]
[1760025637258,0.2766,4318.6,4318.5,1.6841]
[1760025637563,0.3631,4318.6,4318.5,1.2156]
[1760025637963,0.2766,4318.6,4318.5,1.2156]
[1760025638358,0.5106,4318.6,4318.5,1.6841]
[1760025638554,0.50314,4318.5,4318.1,45.2234]
[1760025638760,0.77974,4318.5,4318.1,45.2234]
[1760025638960,0.69324,4318.5,4318.4,1.21763844]
[1760025639160,0.69324,4318.5,4318.4,2.01383844]
[1760025639965,0.77974,4318.5,4318.4,0.00203844]
[1760025640367,8.78412118,4318.5,4318.4,0.00203844]
[1760025642268,0.0865,4317.7,4317.6,4.5788]
[1760025642472,0.5971,4317.7,4317.6,4.5788]
[1760025642771,0.56956,4317.3,4317.2,1.1783]
[1760025642970,0.0764,4317.3,4317.2,2.7085]
[1760025643268,0.0764,4317.3,4317.2,2.71127144]
[1760025643474,0.72712,4317.7,4317.6,2.7085]
[1760025643669,0.0764,4317.7,4317.6,2.7085]
[1760025643969,0.56952,4317.7,4317.5,0.4731]
[1760025644363,0.56952,4317.7,4317.6,1.1783]
[1760025644564,0.56952,4317.7,4317.6,1.9752]
[1760025645271,0.56952,4317.7,4317.6,2.7085]
[1760025645471,0.41672,4317.7,4317.6,2.7085]
[1760025645772,0.55672,4317.7,4317.6,2.7085]
[1760025646966,0.234,4318.0,4317.6,1.5302]
[1760025647170,3.69447,4318.2,4318.1,2.7041]
[1760025647471,0.55667,4318.2,4318.1,2.7041]
[1760025648170,0.14,4318.2,4318.1,2.7041]
[1760025648369,0.14,4318.2,4318.1,1.9697]
[1760025648871,0.14,4318.2,4318.1,2.7041]
[1760025649173,0.07,4318.2,4318.1,2.7041]
[1760025650067,0.14,4318.2,4318.1,2.7041]
[1760025650267,0.234,4318.3,4318.1,2.7041]
[1760025650464,0.234,4318.3,4318.0,0.4688]
[1760025650465,0.41663,4318.6,4318.5,0.4688]
[1760025650667,3.2078,4318.7,4318.6,2.7041]
[1760025651174,3.2778,4318.7,4318.6,2.7041]
[1760025651373,0.14,4318.7,4318.6,1.9697]
[1760025651574,0.55662,4318.7,4318.6,1.1775]
[1760025651776,0.55662,4318.7,4318.6,1.9697]
[1760025651971,0.1852,4318.9,4318.7,1.1775]
[1760025652173,0.6018,4318.9,4318.8,2.7041]
[1760025652479,0.4866,4318.9,4318.8,2.7041]
[1760025653077,0.5566,4318.9,4318.8,2.7041]
[1760025654576,0.14,4318.9,4318.8,2.7041]
[1760025654777,0.14,4318.9,4318.8,1.1775]
[1760025654979,0.234,4319.0,4318.8,1.1775]
[1760025654980,0.234,4319.0,4318.8,2.7041]
[1760025655175,0.00222708,4319.1,4319.0,3.1729]
[1760025655375,0.00222708,4319.1,4319.0,3.4069]
[1760025655675,3.2078,4319.8,4319.7,2.7041]
[1760025656070,0.41648,4320.2,4320.1,2.7041]
[1760025656381,0.4191,4320.4,4320.2,1.1775]
[1760025656578,0.4191,4320.4,4320.3,2.7041]
[1760025656777,0.18773301,4320.4,4320.3,2.7066075]
[1760025657182,0.18773301,4320.4,4320.3,2.9406075]
[1760025657484,0.18773301,4320.4,4320.3,43.7406075]
[1760025658878,0.18773301,4320.4,4320.3,43.5066075]
[1760025659079,0.18773301,4320.4,4320.3,42.7722075]
[1760025659280,0.32773301,4320.4,4320.3,1.9722075]
[1760025659580,0.32773301,4320.4,4320.3,1.1800075]
[1760025659776,0.37153301,4320.4,4320.3,1.1800075]
[1760025659979,0.37153301,4320.4,4320.3,0.0025075]
[1760025660182,0.18643301,4320.4,4320.3,0.0025075]
[1760025660478,0.14263301,4320.4,4320.3,1.9722075]
[1760025660685,0.18643301,4320.4,4320.3,0.0025075]
[1760025661081,3.15357452,4320.4,4320.3,0.0025075]
[1760025661384,8.15357452,4320.4,4320.3,0.0025075]
[1760025661689,0.14,4319.2,4319.1,4.3853]
[1760025661883,0.79057,4319.2,4319.1,4.3853]
[1760025662082,0.55662,4318.7,4318.6,1.1775]
[1760025662280,0.14,4318.7,4318.6,1.9697]
[1760025662476,0.48653,4319.6,4319.5,2.4385]
[1760025662686,0.07,4319.6,4319.5,3.17497269]
[1760025662885,0.0438,4320.1,4320.0,1.261]
[1760025662886,0.48649,4320.1,4320.0,1.261]
[1760025663087,0.00263301,4320.4,4320.0,5.2032]
[1760025663387,0.41647,4320.3,4320.2,2.7041]
[1760025663783,0.00263301,4320.4,4320.3,2.7041]
[1760025663986,0.07263301,4320.4,4320.3,2.7041]
[1760025664888,0.14263301,4320.4,4320.3,1.1775]
[1760025665284,0.14263301,4320.4,4320.3,2.7041]
[1760025665589,0.14263301,4320.4,4320.3,1.1775]
[1760025666395,0.14263301,4320.4,4320.3,2.7041]
[1760025666596,0.07263301,4320.4,4320.3,2.7041]
[1760025666998,0.00263301,4320.4,4320.3,2.7041]
[1760025668594,0.07263301,4320.4,4320.3,2.9381]
[1760025668794,0.00263301,4320.4,4320.3,7.9381]
[1760025670496,0.1851,4320.9,4320.8,0.41642]
[1760025670700,0.1851,4320.9,4320.8,6.56232]
[1760025670900,0.41636,4321.4,4321.3,2.7041]
[1760025671096,0.41636,4321.4,4321.3,43.7381]
[1760025671297,0.41734,4321.6,4321.5,3.1729]
[1760025671597,0.00341707,4321.6,4321.5,3.4059]
[1760025673693,0.00341707,4321.6,4321.5,8.1729]
[1760025673891,0.00341707,4321.6,4321.5,8.4059]
[1760025677401,0.00341707,4321.6,4321.5,8.1729]
[1760025677596,0.00341707,4321.6,4321.5,3.1729]
[1760025677796,0.03801707,4321.6,4321.5,2.4385]
[1760025678205,0.0346,4321.1,4321.0,2.3185]
[1760025678497,0.42721,4320.9,4320.8,3.2078]
[1760025678698,0.41641,4320.9,4320.8,3.2078]
[1760025678899,0.41641,4320.9,4320.8,4.3239]
[1760025680507,5.52264,4321.4,4320.8,4.3239]
[1760025680508,0.41637,4321.3,4321.1,1.1161]
[1760025680995,0.00341707,4321.6,4321.5,1.5794]
[1760025681408,0.00341707,4321.6,4321.5,1.8124]
[1760025682694,0.00341707,4321.6,4321.5,1.5794]
[1760025682898,0.00341707,4321.6,4321.5,1.8124]
[1760025683499,0.00341707,4321.6,4321.5,1.5794]
[1760025683808,0.00341707,4321.6,4321.5,1.8124]
[1760025685004,0.00341707,4321.6,4321.5,42.6124]
[1760025685500,0.00341707,4321.6,4321.5,42.3794]
[1760025685706,0.00341707,4321.6,4321.5,42.6124]
[1760025687209,3.62403,4322.7,4322.6,1.1161]
[1760025687505,4.16904308,4322.7,4322.6,1.1161]
[1760025687706,0.41629,4322.1,4322.0,1.5794]
[1760025688209,0.00274109,4322.1,4322.0,1.58153281]
[1760025688907,0.04814109,4322.1,4322.0,3.08443281]
[1760025689306,0.00274109,4322.1,4322.0,3.08443281]
[1760025690206,0.00274109,4322.1,4322.0,3.31743281]
[1760025690407,0.00274109,4322.1,4322.0,3.08443281]
[1760025690607,0.02544109,4322.1,4322.0,3.31743281]
[1760025691510,0.02544109,4322.1,4322.0,3.08443281]
[1760025691711,0.46443109,4322.1,4322.0,3.08443281]
[1760025692209,0.41903109,4322.1,4322.0,3.08443281]
[1760025692405,0.00274109,4322.1,4322.0,3.08443281]
[1760025693111,0.41903109,4322.1,4322.0,3.08443281]
[1760025694011,0.44173109,4322.1,4322.0,3.08443281]
[1760025694209,0.02544109,4322.1,4322.0,3.31743281]
[1760025694415,0.96471608,4322.1,4322.0,3.31743281]
[1760025694615,0.41903109,4322.1,4322.0,3.31743281]
[1760025695407,0.54862305,4322.1,4322.0,3.73373281]
[1760025695610,0.54862305,4322.1,4322.0,3.31743281]
[1760025695810,0.96491305,4322.1,4322.0,3.31743281]
[1760025696013,0.00274109,4322.1,4322.0,3.73373281]
[1760025698309,0.00274109,4322.1,4322.0,3.50073281]
[1760025698615,0.00274109,4322.1,4322.0,3.73373281]
[1760025698803,0.185,4322.5,4322.4,2.619]
[1760025699009,0.185,4322.5,4322.4,6.0598]
[1760025699010,0.2121,4322.5,4322.4,6.0598]
[1760025699211,0.185,4322.5,4322.4,2.852]
[1760025699406,0.185,4322.5,4322.4,6.0598]
[1760025699611,0.185,4322.5,4322.4,46.8598]
[1760025699810,0.18797107,4322.5,4322.4,46.8598]
[1760025700513,0.18797107,4322.5,4322.4,46.6268]
[1760025700712,0.18797107,4322.5,4322.4,46.8598]
[1760025701222,0.022,4322.9,4322.8,2.619]
[1760025701519,0.022,4322.9,4322.8,2.852]
[1760025702119,0.02461796,4322.9,4322.8,2.852]
[1760025703011,3.5152,4324.0,4323.9,2.5906]
[1760025703312,3.74807207,4324.0,4323.9,2.5906]
[1760025703711,4.05547207,4324.0,4323.9,2.5906]
[1760025704016,4.36580888,4324.0,4323.9,1.8885]
[1760025704211,3.75100888,4324.0,4323.9,1.8885]
[1760025704513,4.36580888,4324.0,4323.9,2.5906]
[1760025704811,0.54320888,4324.0,4323.9,2.5906]
[1760025705011,1.15040888,4324.0,4323.9,2.5906]
[1760025705412,0.00293681,4324.0,4323.9,2.5906]
[1760025705616,0.84622113,4324.0,4323.9,2.5906]
[1760025706016,0.00293681,4324.0,4323.9,2.5906]
[1760025707619,0.00293681,4324.0,4323.9,2.8246]
[1760025707817,0.00293681,4324.0,4323.9,6.0324]
[1760025710417,0.00293681,4324.0,4323.9,5.7984]
[1760025710720,0.00293681,4324.0,4323.9,6.0324]
[1760025710922,0.00293681,4324.0,4323.9,5.7984]
[1760025711120,0.00293681,4324.0,4323.9,6.0324]
[1760025712622,0.41607,4324.5,4324.4,2.95717]
[1760025712916,0.41607,4324.5,4324.4,3.19117]
[1760025713116,0.41607,4324.5,4324.4,2.95717]
[1760025713422,0.41607,4324.5,4324.4,2.7751]
[1760025713619,1.03498554,4324.5,4324.4,1.8347]
[1760025713921,1.03498554,4324.5,4324.4,2.5411]
[1760025715423,1.03498554,4324.5,4324.4,1.0889]
[1760025715624,1.2254,4324.1,4324.0,1.0889]
[1760025715926,1.0327,4324.1,4324.0,1.5316]
[1760025716219,0.41611,4324.0,4323.9,3.2078]
[1760025716420,6.22541,4324.0,4323.9,3.2078]
[1760025716816,6.22541,4324.0,4323.9,4.2967]
[1760025717219,1.03271,4324.0,4323.9,5.0425]
[1760025718116,1.03271,4324.0,4323.9,5.7489]
[1760025718322,1.03271,4324.0,4323.9,5.0425]
[1760025718522,1.03271,4324.0,4323.9,5.7489]
[1760025719023,1.22541,4324.0,4323.9,4.2967]
[1760025719724,0.41611,4324.0,4323.9,5.7489]
[1760025719925,1.03271,4324.0,4323.9,4.2967]
[1760025720220,1.22541,4324.0,4323.9,4.2967]
[1760025720625,0.6166,4324.0,4323.9,5.7489]
[1760025720825,1.03271,4324.0,4323.9,5.7489]
[1760025721024,0.6166,4324.0,4323.9,5.7489]
[1760025721221,1.03271,4324.0,4323.9,5.7489]
[1760025721422,0.41611,4324.0,4323.9,5.7489]
[1760025721618,0.72441,4324.0,4323.9,5.7489]
[1760025722029,0.72441,4324.0,4323.8,1.8181]
[1760025722030,0.41612,4323.9,4323.8,1.8181]
[1760025722222,1.22542,4323.9,4323.8,1.8181]
[1760025722427,4.17966988,4323.9,4323.8,1.8181]
[1760025722621,3.98696988,4323.9,4323.8,4.3592]
[1760025722825,1.26572,4323.9,4323.8,3.6528]
[1760025723032,9.40127078,4323.9,4323.8,1.8181]
[1760025723222,1.0328,4323.1,4323.0,1.0889]
[1760025723427,1.0328,4323.1,4323.0,2.2774]
[1760025723623,0.8093,4323.0,4322.9,3.2078]
[1760025723928,0.6166,4323.0,4322.9,4.2967]
[1760025724124,0.8093,4323.0,4322.9,4.2967]
[1760025724327,0.6166,4323.0,4322.9,5.7489]
[1760025725328,0.4162,4323.1,4322.9,5.7489]
[1760025725539,1.0328,4323.1,4323.0,2.9838]
[1760025726133,0.233,4323.3,4323.0,2.9838]
[1760025726331,0.95748,4323.3,4323.2,2.5411]
[1760025726630,1.26578,4323.3,4323.2,2.5411]
[1760025729031,0.95748,4323.3,4323.2,2.5411]
[1760025729336,1.26578,4323.3,4323.2,2.5411]
[1760025730039,0.8496,4323.3,4323.2,2.5411]
[1760025731130,0.8496,4323.3,4323.0,0.8589]
[1760025731131,0.3083,4322.7,4322.4,1.0889]
[1760025731436,1.45853,4322.7,4322.6,1.0889]
[1760025731632,1.26583,4322.7,4322.6,1.0889]
[1760025731837,1.26583,4322.7,4322.6,1.8347]
[1760025732024,4.24823,4323.4,4322.6,1.8347]
[1760025732025,3.2078,4323.4,4322.7,1.0889]
[1760025732230,0.3083,4323.6,4323.5,2.9838]
[1760025732531,0.6166,4323.6,4323.5,2.2774]
[1760025733036,0.233,4323.7,4323.6,1.8924]
[1760025733232,0.233,4323.7,4323.6,2.6021]
[1760025733635,0.5082,4323.7,4323.6,2.6021]
[1760025733840,0.7834,4323.7,4323.6,1.8924]
[1760025734026,0.7834,4323.7,4323.6,1.1329]
[1760025734333,0.7834,4323.7,4323.3,1.2988]
[1760025734334,0.41617,4323.4,4323.3,1.2988]
[1760025734635,1.13857,4323.4,4323.3,1.2988]
[1760025735941,0.96657,4323.4,4323.3,3.1912]
[1760025736134,0.64917,4323.4,4323.3,3.9009]
[1760025736334,0.233,4323.4,4323.3,3.9009]
[1760025736734,0.233,4323.4,4323.3,2.6021]
[1760025739229,0.7834,4323.4,4323.3,1.1329]
[1760025739436,0.5504,4323.1,4323.0,2.9518]
[1760025739637,0.41619,4323.2,4323.0,4.421]
[1760025739835,0.9666,4323.1,4323.0,4.421]
[1760025740040,0.5504,4323.1,4323.0,4.421]
[1760025740337,0.2752,4323.1,4323.0,4.421]
[1760025740532,0.41619,4323.2,4323.0,4.83721]
[1760025740741,0.64917,4323.4,4323.3,1.1329]
[1760025740938,0.233,4323.4,4323.3,6.22608]
[1760025741339,0.6932,4323.9,4323.8,2.6021]
[1760025741540,1.10932,4323.9,4323.8,2.6021]
[1760025741843,1.90967176,4323.9,4323.8,1.1329]
[1760025742243,0.96655,4323.6,4323.5,1.5883]
[1760025743436,0.96655,4323.6,4323.5,2.3478]
[1760025743643,0.64915,4323.6,4323.5,3.0575]
[1760025743837,0.69135,4323.6,4323.5,3.0575]
[1760025744043,0.96655,4323.6,4323.5,3.0575]
[1760025745434,0.96655,4323.6,4323.5,1.5883]
[1760025745740,0.41633,4321.7,4321.5,2.11717986]
[1760025746038,0.41639,4321.1,4321.0,0.4554]
[1760025746348,3.85719,4321.1,4321.0,0.4554]
[1760025746641,0.41643,4320.7,4320.5,0.4554]
[1760025746939,3.4408,4320.6,4320.5,0.45777128]
[1760025747344,12.50060488,4320.6,4319.7,3.2078]
[1760025747544,0.41649,4320.1,4319.7,3.2078]
[1760025747840,0.41649,4320.1,4319.0,0.6884]
[1760025747841,0.64949,4320.1,4320.0,1.5883]
[1760025748042,3.85729,4320.1,4320.0,1.5883]
[1760025748347,3.85729,4320.1,4320.0,1.59002347]
[1760025751250,11.80433122,4320.1,4320.0,0.00172347]
[1760025752147,6.57133122,4320.1,4320.0,0.00172347]
[1760025752447,6.80433122,4320.1,4320.0,0.00172347]
[1760025753047,12.42907122,4320.1,4319.6,1.636]
[1760025753244,7.42907122,4320.1,4319.6,1.636]